[Event "Fast Chess"]
[Site "ChessKid.com"]
[Date "2020.04.14"]
[Round "1"]
[White "Kriegl, Thomas"]
[Black "Dai, Lana"]
[Result "0-1"]
[ECO "C47"]
[WhiteElo "1123"]
[BlackElo "1272"]
[PlyCount "80"]
[EventDate "2020.??.??"]
[TimeControl "300+50"]
[WhiteClock "0:02:53"]
[BlackClock "0:00:04"]

1. e4 {[%emt 0:00:50]} e5 {[%emt 0:01:40]} 2. Nf3 {[%emt 0:01:11]} Nc6 {
[%emt 0:00:47]} 3. Nc3 {[%emt 0:01:03]} Bc5 {[%emt 0:00:50]} 4. d3 {[%emt 0:01:
12]} h6 {[%emt 0:00:53]} 5. Be2 {[%emt 0:01:06]} Nf6 {[%emt 0:00:49]} 6. O-O {
[%emt 0:00:51]} d6 {[%emt 0:00:48]} 7. Be3 {[%emt 0:00:57]} Bxe3 {[%emt 0:00:
49]} 8. fxe3 {[%emt 0:00:50]} Bg4 {[%emt 0:00:55]} 9. h3 {[%emt 0:01:30]} Bxf3
{[%emt 0:00:50]} 10. Bxf3 {[%emt 0:00:55]} O-O {[%emt 0:00:55]} 11. d4 {
[%emt 0:01:55]} exd4 {[%emt 0:00:49]} 12. exd4 {[%emt 0:00:51]} Re8 {[%emt 0:
01:04]} 13. Re1 {[%emt 0:00:59]} a5 {[%emt 0:01:00]} 14. d5 {[%emt 0:00:49]}
Nb4 {[%emt 0:00:53]} 15. Nb5 {[%emt 0:01:14]} c6 {[%emt 0:00:59]} 16. dxc6 {
[%emt 0:00:56]} bxc6 {[%emt 0:00:47]} 17. Nxd6 {[%emt 0:00:53]} Re6 {[%emt 0:
00:59]} 18. e5 {[%emt 0:00:51]} Nh7 {[%emt 0:01:06]} 19. Bg4 {[%emt 0:01:08]}
Re7 {[%emt 0:01:16]} 20. c3 {[%emt 0:01:06]} Nd5 {[%emt 0:00:56]} 21. Bf5 {
[%emt 0:01:05]} Nf4 {[%emt 0:00:55]} 22. Bxh7+ {[%emt 0:00:52]} Kxh7 {[%emt 0:
00:47]} 23. Qd3+ {[%emt 0:00:49]} Nxd3 {[%emt 0:00:49]} 24. Nxf7 {[%emt 0:00:
54]} Rxf7 {[%emt 0:00:50]} 25. Rf1 {[%emt 0:00:52]} Rxf1+ {[%emt 0:00:48]} 26.
Rxf1 {[%emt 0:00:50]} Nxe5 {[%emt 0:00:48]} 27. g4 {[%emt 0:00:51]} Qd2 {
[%emt 0:00:51]} 28. Rf2 {[%emt 0:00:49]} Qe1+ {[%emt 0:00:50]} 29. Rf1 {
[%emt 0:00:48]} Nf3+ {[%emt 0:00:52]} 30. Kg2 {[%emt 0:00:51]} Qe2+ {[%emt 0:
00:48]} 31. Rf2 {[%emt 0:00:49]} Nh4+ {[%emt 0:00:54]} 32. Kg3 {[%emt 0:00:51]}
Qe7 {[%emt 0:00:51]} 33. b3 {[%emt 0:00:58]} Rf8 {[%emt 0:00:48]} 34. Rxf8 {
[%emt 0:00:53]} Qxf8 {[%emt 0:00:47]} 35. Kxh4 {[%emt 0:00:49]} Qf6+ {[%emt 0:
00:47]} 36. Kg3 {[%emt 0:00:48]} g5 {[%emt 0:00:48]} 37. a4 {[%emt 0:00:52]} h5
{[%emt 0:00:47]} 38. c4 {[%emt 0:00:48]} hxg4 {[%emt 0:00:47]} 39. Kxg4 {
[%emt 0:00:54]} Qf4+ {[%emt 0:00:47]} 40. Kh5 {[%emt 0:00:50]} c5 {[%emt 0:00:
50] TopBrownCave won on time} 0-1

[Event "Fast Chess"]
[Site "ChessKid.com"]
[Date "2020.04.14"]
[Round "2"]
[White "Dai, Lana"]
[Black "Sasse, Gabriel"]
[Result "1-0"]
[ECO "C50"]
[WhiteElo "1280"]
[BlackElo "1235"]
[PlyCount "95"]
[EventDate "2020.??.??"]
[TimeControl "300+50"]
[WhiteClock "0:04:58"]
[BlackClock "0:01:43"]

1. e4 {[%emt 0:00:45]} e5 {[%emt 0:00:46]} 2. Nf3 {[%emt 0:00:48]} Nc6 {
[%emt 0:00:46]} 3. Nc3 {[%emt 0:00:47]} Nf6 {[%emt 0:00:47]} 4. Bc4 {[%emt 0:
00:49]} h6 {[%emt 0:00:46]} 5. d3 {[%emt 0:00:47]} Bc5 {[%emt 0:00:46]} 6. h3 {
[%emt 0:00:52]} O-O {[%emt 0:00:48]} 7. a3 {[%emt 0:00:49]} Ne8 {[%emt 0:00:46]
} 8. O-O {[%emt 0:00:51]} Qf6 {[%emt 0:00:49]} 9. Nd5 {[%emt 0:00:58]} Qg6 {
[%emt 0:00:58]} 10. Nh4 {[%emt 0:01:01]} Qe6 {[%emt 0:00:53]} 11. Nxc7 {
[%emt 0:00:53]} Qe7 {[%emt 0:00:54]} 12. Nxa8 {[%emt 0:00:54]} Qxh4 {[%emt 0:
00:47]} 13. g3 {[%emt 0:01:02]} Qf6 {[%emt 0:00:50]} 14. Be3 {[%emt 0:00:58]}
Bxe3 {[%emt 0:00:48]} 15. fxe3 {[%emt 0:00:47]} Qg6 {[%emt 0:00:46]} 16. Rf3 {
[%emt 0:00:52]} d6 {[%emt 0:00:47]} 17. h4 {[%emt 0:00:58]} Bg4 {[%emt 0:00:49]
} 18. Bd5 {[%emt 0:01:12]} Bxf3 {[%emt 0:00:49]} 19. Qxf3 {[%emt 0:00:49]} Nf6
{[%emt 0:00:54]} 20. Bxc6 {[%emt 0:00:57]} bxc6 {[%emt 0:00:48]} 21. Nc7 {
[%emt 0:00:49]} Rc8 {[%emt 0:00:51]} 22. Na6 {[%emt 0:00:52]} Rd8 {[%emt 0:00:
57]} 23. c4 {[%emt 0:00:55]} d5 {[%emt 0:00:48]} 24. cxd5 {[%emt 0:00:50]} cxd5
{[%emt 0:00:46]} 25. exd5 {[%emt 0:00:56]} Rxd5 {[%emt 0:00:47]} 26. Nb4 {
[%emt 0:01:11]} Rd8 {[%emt 0:00:53]} 27. e4 {[%emt 0:00:57]} Rd7 {[%emt 0:00:
58]} 28. Rc1 {[%emt 0:00:52]} Rd8 {[%emt 0:00:51]} 29. Rc7 {[%emt 0:00:58]} a6
{[%emt 0:00:50]} 30. Nxa6 {[%emt 0:00:57]} Rd6 {[%emt 0:00:57]} 31. Rc8+ {
[%emt 0:00:51]} Kh7 {[%emt 0:00:47]} 32. Nc5 {[%emt 0:00:58]} Rb6 {[%emt 0:00:
50]} 33. b4 {[%emt 0:00:58]} Rd6 {[%emt 0:00:58]} 34. Qe3 {[%emt 0:00:58]} Ng4
{[%emt 0:00:51]} 35. Qd2 {[%emt 0:00:58]} Nf6 {[%emt 0:00:53]} 36. Qe3 {
[%emt 0:00:52]} Ng4 {[%emt 0:00:48]} 37. Qd2 {[%emt 0:00:51]} Rf6 {[%emt 0:00:
53]} 38. Nd7 {[%emt 0:01:03]} Rf2 {[%emt 0:00:49]} 39. Qc3 {[%emt 0:01:00]} Ra2
{[%emt 0:00:56]} 40. Nf8+ {[%emt 0:00:59]} Kg8 {[%emt 0:00:51]} 41. Nxg6+ {
[%emt 0:00:47]} Kh7 {[%emt 0:00:46]} 42. Rh8+ {[%emt 0:00:49]} Kxg6 {[%emt 0:
00:47]} 43. Qc6+ {[%emt 0:00:49]} Kh5 {[%emt 0:00:49]} 44. Rg8 {[%emt 0:00:49]}
Ne3 {[%emt 0:00:50]} 45. Kh1 {[%emt 0:00:58]} Kg4 {[%emt 0:00:51]} 46. Rxg7+ {
[%emt 0:00:48]} Kh3 {[%emt 0:00:47]} 47. Qd7+ {[%emt 0:00:56]} Ng4 {[%emt 0:00:
53]} 48. Qxg4# {[%emt 0:00:47] TopBrownCave won by checkmate} 1-0

[Event "Fast Chess"]
[Site "ChessKid.com"]
[Date "2020.04.14"]
[Round "2"]
[White "Li, Patrick"]
[Black "Li, Tobias"]
[Result "1-0"]
[ECO "C57"]
[WhiteElo "1008"]
[BlackElo "1283"]
[PlyCount "69"]
[EventDate "2020.??.??"]
[TimeControl "300+50"]
[WhiteClock "0:03:01"]
[BlackClock "0:03:37"]

1. e4 {[%emt 0:00:46]} e5 {[%emt 0:00:47]} 2. Nf3 {[%emt 0:00:46]} Nc6 {
[%emt 0:00:47]} 3. Nc3 {[%emt 0:00:46]} Nf6 {[%emt 0:00:47]} 4. Bc4 {[%emt 0:
00:46]} Bc5 {[%emt 0:00:48]} 5. Ng5 {[%emt 0:00:47]} O-O {[%emt 0:00:46]} 6.
Nxf7 {[%emt 0:00:49]} Rxf7 {[%emt 0:00:46]} 7. Bxf7+ {[%emt 0:00:49]} Kxf7 {
[%emt 0:00:46]} 8. O-O {[%emt 0:00:50]} Kg8 {[%emt 0:00:46]} 9. h3 {[%emt 0:00:
52]} d6 {[%emt 0:00:47]} 10. Qf3 {[%emt 0:00:53]} Nd4 {[%emt 0:00:50]} 11. Qd3
{[%emt 0:00:51]} Qe8 {[%emt 0:00:55]} 12. Qc4+ {[%emt 0:00:51]} Kh8 {[%emt 0:
00:56]} 13. Nd5 {[%emt 0:00:55]} Be6 {[%emt 0:00:51]} 14. Qc3 {[%emt 0:00:54]}
Bxd5 {[%emt 0:00:50]} 15. exd5 {[%emt 0:00:51]} Nxd5 {[%emt 0:00:46]} 16. Qc4 {
[%emt 0:00:52]} Ne7 {[%emt 0:00:49]} 17. Re1 {[%emt 0:00:58]} Qg6 {[%emt 0:00:
52]} 18. d3 {[%emt 0:00:54]} Qf6 {[%emt 0:00:54]} 19. Re4 {[%emt 0:00:55]} a6 {
[%emt 0:01:10]} 20. Re3 {[%emt 0:00:53]} Nxc2 {[%emt 0:00:51]} 21. Rf3 {
[%emt 0:00:46]} Na3 {[%emt 0:01:17]} 22. Qb3 {[%emt 0:00:58]} Qg6 {[%emt 0:01:
07]} 23. bxa3 {[%emt 0:00:50]} Nd5 {[%emt 0:00:51]} 24. Qxd5 {[%emt 0:00:49]}
Bb6 {[%emt 0:00:59]} 25. Qxb7 {[%emt 0:00:49]} Qe8 {[%emt 0:00:53]} 26. Qd5 {
[%emt 0:00:59]} Rb8 {[%emt 0:00:50]} 27. Qe4 {[%emt 0:00:54]} Qe6 {[%emt 0:00:
50]} 28. Bg5 {[%emt 0:00:58]} Bd4 {[%emt 0:00:59]} 29. Rc1 {[%emt 0:01:00]} Bc5
{[%emt 0:01:03]} 30. Qc6 {[%emt 0:00:58]} Rc8 {[%emt 0:01:22]} 31. Qxa6 {
[%emt 0:00:48]} Bxa3 {[%emt 0:00:48]} 32. Qxa3 {[%emt 0:01:05]} Qg6 {[%emt 0:
00:53]} 33. Qa6 {[%emt 0:01:00]} Rb8 {[%emt 0:00:55]} 34. Qb7 {[%emt 0:00:54]}
Rxb7 {[%emt 0:00:49]} 35. Rf8# {[%emt 0:00:48] WideClassyQuiz won by checkmate}
1-0

[Event "Fast Chess"]
[Site "ChessKid.com"]
[Date "2020.04.14"]
[Round "3"]
[White "Li, Patrick"]
[Black "Dai, Lana"]
[Result "0-1"]
[ECO "C55"]
[WhiteElo "1005"]
[BlackElo "1283"]
[PlyCount "136"]
[EventDate "2020.??.??"]
[TimeControl "300+50"]
[WhiteClock "0:04:59"]
[BlackClock "0:04:01"]

1. e4 {[%emt 0:00:46]} e5 {[%emt 0:00:49]} 2. Nf3 {[%emt 0:00:45]} Nc6 {
[%emt 0:00:48]} 3. Nc3 {[%emt 0:00:45]} Nf6 {[%emt 0:00:47]} 4. Bc4 {[%emt 0:
00:47]} h6 {[%emt 0:01:10]} 5. O-O {[%emt 0:00:57]} Bc5 {[%emt 0:00:45]} 6. Bb5
{[%emt 0:00:52]} d6 {[%emt 0:00:55]} 7. Bxc6+ {[%emt 0:00:49]} bxc6 {[%emt 0:
00:47]} 8. d3 {[%emt 0:00:54]} Bg4 {[%emt 0:00:50]} 9. h3 {[%emt 0:00:48]} Bh5
{[%emt 0:00:49]} 10. a3 {[%emt 0:00:54]} O-O {[%emt 0:00:54]} 11. Na4 {[%emt 0:
00:52]} Bd4 {[%emt 0:00:50]} 12. c3 {[%emt 0:00:54]} Bc5 {[%emt 0:00:52]} 13.
Nxc5 {[%emt 0:00:50]} dxc5 {[%emt 0:00:46]} 14. d4 {[%emt 0:01:01]} exd4 {
[%emt 0:00:49]} 15. cxd4 {[%emt 0:00:48]} cxd4 {[%emt 0:00:47]} 16. Bd2 {
[%emt 0:00:58]} Nxe4 {[%emt 0:00:58]} 17. Bb4 {[%emt 0:01:01]} c5 {[%emt 0:00:
57]} 18. Bd2 {[%emt 0:00:53]} Nxd2 {[%emt 0:00:49]} 19. Qxd2 {[%emt 0:00:49]}
Bxf3 {[%emt 0:00:47]} 20. gxf3 {[%emt 0:00:49]} c6 {[%emt 0:01:01]} 21. Rac1 {
[%emt 0:00:51]} Qd6 {[%emt 0:00:58]} 22. Qc2 {[%emt 0:00:56]} Qd5 {[%emt 0:01:
07]} 23. Qxc5 {[%emt 0:00:46]} Qxc5 {[%emt 0:00:50]} 24. Rxc5 {[%emt 0:00:47]}
Rac8 {[%emt 0:00:49]} 25. Kh1 {[%emt 0:00:48]} d3 {[%emt 0:00:49]} 26. Rd1 {
[%emt 0:00:48]} Rfd8 {[%emt 0:00:47]} 27. Rc3 {[%emt 0:00:51]} d2 {[%emt 0:00:
48]} 28. Rc2 {[%emt 0:00:48]} c5 {[%emt 0:00:54]} 29. Rdxd2 {[%emt 0:00:47]}
Rxd2 {[%emt 0:00:50]} 30. Rxd2 {[%emt 0:00:49]} c4 {[%emt 0:00:48]} 31. Rc2 {
[%emt 0:01:11]} h5 {[%emt 0:00:50]} 32. b3 {[%emt 0:00:48]} c3 {[%emt 0:00:52]}
33. Kg1 {[%emt 0:00:55]} g5 {[%emt 0:00:47]} 34. Kf1 {[%emt 0:00:50]} f5 {
[%emt 0:00:47]} 35. Ke2 {[%emt 0:00:51]} g4 {[%emt 0:00:48]} 36. fxg4 {[%emt 0:
00:49]} fxg4 {[%emt 0:00:49]} 37. hxg4 {[%emt 0:00:47]} hxg4 {[%emt 0:00:51]}
38. Kd3 {[%emt 0:00:49]} Kf7 {[%emt 0:00:55]} 39. Rxc3 {[%emt 0:00:48]} Rxc3+ {
[%emt 0:00:47]} 40. Kxc3 {[%emt 0:00:47]} Kf6 {[%emt 0:00:46]} 41. Kd3 {
[%emt 0:00:46]} Kf5 {[%emt 0:00:46]} 42. Ke3 {[%emt 0:00:46]} Kg5 {[%emt 0:00:
51]} 43. f3 {[%emt 0:00:46]} g3 {[%emt 0:00:48]} 44. Ke2 {[%emt 0:00:49]} Kh4 {
[%emt 0:00:52]} 45. f4 {[%emt 0:00:50]} Kh3 {[%emt 0:00:49]} 46. Kf3 {[%emt 0:
01:08]} g2 {[%emt 0:00:49]} 47. Kf2 {[%emt 0:00:49]} Kh2 {[%emt 0:00:48]} 48.
f5 {[%emt 0:00:52]} g1=Q+ {[%emt 0:00:47]} 49. Kf3 {[%emt 0:00:51]} Qg5 {
[%emt 0:00:53]} 50. Ke4 {[%emt 0:00:49]} Qg2+ {[%emt 0:00:55]} 51. Ke5 {
[%emt 0:01:03]} Qg3+ {[%emt 0:00:53]} 52. Ke6 {[%emt 0:00:58]} Qxb3+ {[%emt 0:
00:49]} 53. Ke5 {[%emt 0:00:52]} Qxa3 {[%emt 0:00:47]} 54. f6 {[%emt 0:00:47]}
a5 {[%emt 0:00:48]} 55. f7 {[%emt 0:00:49]} a4 {[%emt 0:00:49]} 56. Ke6 {
[%emt 0:00:47]} Qf8 {[%emt 0:00:51]} 57. Kf6 {[%emt 0:00:51]} a3 {[%emt 0:00:
47]} 58. Ke5 {[%emt 0:00:49]} Qxf7 {[%emt 0:00:48]} 59. Ke4 {[%emt 0:01:01]}
Kg3 {[%emt 0:00:47]} 60. Kd3 {[%emt 0:00:48]} Qe6 {[%emt 0:00:48]} 61. Kc3 {
[%emt 0:00:48]} Qd5 {[%emt 0:00:47]} 62. Kb4 {[%emt 0:00:49]} Qc6 {[%emt 0:00:
50]} 63. Kb3 {[%emt 0:00:46]} Kf3 {[%emt 0:00:48]} 64. Kxa3 {[%emt 0:00:46]}
Qb6 {[%emt 0:00:48]} 65. Ka4 {[%emt 0:00:49]} Ke4 {[%emt 0:00:46]} 66. Ka3 {
[%emt 0:00:57]} Kd4 {[%emt 0:00:47]} 67. Ka2 {[%emt 0:00:50]} Kc3 {[%emt 0:00:
47]} 68. Ka3 {[%emt 0:00:50]} Qb3# {[%emt 0:00:47] TopBrownCave won by
checkmate} 0-1

[Event "Fast Chess"]
[Site "ChessKid.com"]
[Date "2020.04.14"]
[Round "3"]
[White "Sasse, Gabriel"]
[Black "Kriegl, Thomas"]
[Result "1-0"]
[ECO "C20"]
[WhiteElo "1241"]
[BlackElo "1110"]
[PlyCount "59"]
[EventDate "2020.??.??"]
[TimeControl "300+50"]
[WhiteClock "0:01:04"]
[BlackClock "0:05:20"]

1. e4 {[%emt 0:00:57]} e5 {[%emt 0:00:50]} 2. Qh5 {[%emt 0:00:50]} g6 {[%emt 0:
01:00]} 3. Qxe5+ {[%emt 0:00:47]} Qe7 {[%emt 0:00:54]} 4. Qxh8 {[%emt 0:00:47]}
Nf6 {[%emt 0:00:56]} 5. d3 {[%emt 0:00:53]} d6 {[%emt 0:00:57]} 6. Bg5 {
[%emt 0:00:47]} Qe5 {[%emt 0:00:58]} 7. Bxf6 {[%emt 0:00:50]} Qxb2 {[%emt 0:01:
03]} 8. Bxb2 {[%emt 0:00:48]} Ke7 {[%emt 0:01:19]} 9. Qf6+ {[%emt 0:00:49]} Ke8
{[%emt 0:00:49]} 10. e5 {[%emt 0:00:56]} dxe5 {[%emt 0:00:49]} 11. Qxe5+ {
[%emt 0:00:46]} Kd8 {[%emt 0:00:49]} 12. Bc1 {[%emt 0:01:01]} c6 {[%emt 0:00:
53]} 13. Bg5+ {[%emt 0:00:49]} Kd7 {[%emt 0:01:33]} 14. g3 {[%emt 0:00:47]} Bd6
{[%emt 0:01:06]} 15. Bh3+ {[%emt 0:00:49]} Kc7 {[%emt 0:00:58]} 16. Qg7 {
[%emt 0:00:51]} Bxh3 {[%emt 0:00:52]} 17. Nxh3 {[%emt 0:00:47]} Na6 {[%emt 0:
00:55]} 18. Qxf7+ {[%emt 0:00:48]} Kb6 {[%emt 0:00:56]} 19. Be3+ {[%emt 0:00:
47]} c5 {[%emt 0:00:52]} 20. Qxh7 {[%emt 0:00:48]} Re8 {[%emt 0:00:52]} 21.
Qxg6 {[%emt 0:00:50]} Re7 {[%emt 0:01:27]} 22. O-O {[%emt 0:00:49]} Nb4 {
[%emt 0:01:01]} 23. Qxd6+ {[%emt 0:00:49]} Kb5 {[%emt 0:01:05]} 24. Qxc5+ {
[%emt 0:00:48]} Ka4 {[%emt 0:00:54]} 25. Qxe7 {[%emt 0:00:47]} b5 {[%emt 0:00:
53]} 26. Qxa7+ {[%emt 0:00:48]} Na6 {[%emt 0:00:55]} 27. Qxa6+ {[%emt 0:00:47]}
Kb4 {[%emt 0:00:50]} 28. Bd2+ {[%emt 0:00:48]} Kc5 {[%emt 0:00:49]} 29. Be3+ {
[%emt 0:00:49]} Kb4 {[%emt 0:00:50]} 30. Qa3# {[%emt 0:00:50] LimeFarActor won
by checkmate} 1-0

[Event "Fast Chess"]
[Site "ChessKid.com"]
[Date "2020.04.15"]
[Round "1"]
[White "Dai, Lana"]
[Black "Sasse, Gabriel"]
[Result "0-1"]
[ECO "C50"]
[WhiteElo "1275"]
[BlackElo "1253"]
[PlyCount "54"]
[EventDate "2020.??.??"]
[TimeControl "900"]
[WhiteClock "0:13:21"]
[BlackClock "0:12:15"]

1. e4 {[%emt 0:00:01]} e5 {[%emt 0:00:01]} 2. Nf3 {[%emt 0:00:02]} Nc6 {
[%emt 0:00:01]} 3. Nc3 {[%emt 0:00:02]} Nf6 {[%emt 0:00:03]} 4. a3 {[%emt 0:00:
05]} h6 {[%emt 0:00:02]} 5. h3 {[%emt 0:00:01]} Bc5 {[%emt 0:00:01]} 6. Bc4 {
[%emt 0:00:02]} O-O {[%emt 0:00:02]} 7. d3 {[%emt 0:00:01]} d6 {[%emt 0:00:02]}
8. O-O {[%emt 0:00:10]} Ne8 {[%emt 0:00:02]} 9. b4 {[%emt 0:00:11]} Bb6 {
[%emt 0:00:05]} 10. Nd5 {[%emt 0:00:06]} Be6 {[%emt 0:00:10]} 11. Nxb6 {
[%emt 0:00:07]} cxb6 {[%emt 0:00:03]} 12. Bxe6 {[%emt 0:00:01]} Qf6 {[%emt 0:
00:02]} 13. Bd5 {[%emt 0:00:17]} Nd4 {[%emt 0:00:06]} 14. Nxd4 {[%emt 0:00:12]}
exd4 {[%emt 0:00:03]} 15. Bxb7 {[%emt 0:00:03]} Rb8 {[%emt 0:00:02]} 16. Bc6 {
[%emt 0:00:03]} Nc7 {[%emt 0:00:02]} 17. a4 {[%emt 0:00:19]} a5 {[%emt 0:00:04]
} 18. bxa5 {[%emt 0:00:03]} bxa5 {[%emt 0:00:01]} 19. Ba3 {[%emt 0:00:05]} Rfd8
{[%emt 0:00:03]} 20. Rb1 {[%emt 0:00:08]} Rxb1 {[%emt 0:00:03]} 21. Qxb1 {
[%emt 0:00:02]} Rb8 {[%emt 0:00:17]} 22. Qxb8+ {[%emt 0:00:05]} Kh7 {[%emt 0:
00:01]} 23. Rb1 {[%emt 0:00:08]} Ne6 {[%emt 0:00:04]} 24. Qxd6 {[%emt 0:00:05]}
Qg6 {[%emt 0:00:03]} 25. Rb8 {[%emt 0:00:06]} Qg5 {[%emt 0:00:11]} 26. Bd5 {
[%emt 0:00:14]} Nf4 {[%emt 0:00:02]} 27. Qf8 {[%emt 0:00:07]} Qxg2# {[%emt 0:
00:04] LimeFarActor won by checkmate} 0-1

[Event "Fast Chess"]
[Site "ChessKid.com"]
[Date "2020.04.15"]
[Round "1"]
[White "Li, Patrick"]
[Black "Li, Tobias"]
[Result "0-1"]
[ECO "C55"]
[WhiteElo "1009"]
[BlackElo "1277"]
[PlyCount "72"]
[EventDate "2020.??.??"]
[TimeControl "900"]
[WhiteClock "0:12:06"]
[BlackClock "0:10:24"]

1. e4 {[%emt 0:00:02]} e5 {[%emt 0:00:03]} 2. Nf3 {[%emt 0:00:01]} Nf6 {
[%emt 0:00:02]} 3. Nc3 {[%emt 0:00:02]} Nc6 {[%emt 0:00:02]} 4. Bc4 {[%emt 0:
00:10]} Bc5 {[%emt 0:00:04]} 5. Ng5 {[%emt 0:00:11]} O-O {[%emt 0:00:01]} 6.
Nxf7 {[%emt 0:00:09]} Rxf7 {[%emt 0:00:05]} 7. Bxf7+ {[%emt 0:00:03]} Kxf7 {
[%emt 0:00:06]} 8. O-O {[%emt 0:00:06]} d6 {[%emt 0:00:03]} 9. h3 {[%emt 0:00:
34]} Kg8 {[%emt 0:00:09]} 10. d3 {[%emt 0:00:07]} Be6 {[%emt 0:00:05]} 11. Be3
{[%emt 0:00:06]} Bxe3 {[%emt 0:00:03]} 12. fxe3 {[%emt 0:00:19]} Qd7 {[%emt 0:
00:11]} 13. d4 {[%emt 0:00:03]} exd4 {[%emt 0:00:03]} 14. exd4 {[%emt 0:00:04]}
Bf7 {[%emt 0:00:07]} 15. d5 {[%emt 0:00:04]} Ne7 {[%emt 0:00:08]} 16. Re1 {
[%emt 0:00:12]} c6 {[%emt 0:00:15]} 17. e5 {[%emt 0:00:10]} dxe5 {[%emt 0:00:
04]} 18. Rxe5 {[%emt 0:00:05]} cxd5 {[%emt 0:00:02]} 19. Nxd5 {[%emt 0:00:18]}
Nexd5 {[%emt 0:00:06]} 20. c4 {[%emt 0:00:03]} Nb6 {[%emt 0:00:07]} 21. Re2 {
[%emt 0:00:06]} Qxd1+ {[%emt 0:00:07]} 22. Rxd1 {[%emt 0:00:00]} Nxc4 {[%emt 0:
00:04]} 23. b3 {[%emt 0:00:07]} Nb6 {[%emt 0:00:05]} 24. Red2 {[%emt 0:00:02]}
h6 {[%emt 0:00:08]} 25. Rd8+ {[%emt 0:00:03]} Rxd8 {[%emt 0:00:05]} 26. Rxd8+ {
[%emt 0:00:00]} Kh7 {[%emt 0:00:04]} 27. Rb8 {[%emt 0:00:03]} Bd5 {[%emt 0:00:
05]} 28. Ra8 {[%emt 0:00:07]} Nxa8 {[%emt 0:00:10]} 29. g3 {[%emt 0:00:23]} a5
{[%emt 0:00:06]} 30. g4 {[%emt 0:00:17]} a4 {[%emt 0:00:05]} 31. bxa4 {[%emt 0:
00:03]} Bxa2 {[%emt 0:00:01]} 32. h4 {[%emt 0:00:03]} Nxg4 {[%emt 0:00:02]} 33.
Kg2 {[%emt 0:00:06]} Nb6 {[%emt 0:00:00]} 34. Kg3 {[%emt 0:00:03]} Nf6 {
[%emt 0:00:01]} 35. Kf4 {[%emt 0:00:17]} Nc4 {[%emt 0:00:02]} 36. Kf5 {[%emt 0:
00:06]} Nb6 {[%emt 0:00:04] OnlyHungryKiwi won by resignation} 0-1

[Event "Fast Chess"]
[Site "ChessKid.com"]
[Date "2020.04.15"]
[Round "2"]
[White "Li, Tobias"]
[Black "Sasse, Gabriel"]
[Result "1-0"]
[ECO "C50"]
[WhiteElo "1285"]
[BlackElo "1246"]
[PlyCount "135"]
[EventDate "2020.??.??"]
[TimeControl "900"]
[WhiteClock "0:11:22"]
[BlackClock "0:09:29"]

1. e4 {[%emt 0:00:00]} e5 {[%emt 0:00:01]} 2. Nf3 {[%emt 0:00:02]} Nc6 {
[%emt 0:00:00]} 3. Nc3 {[%emt 0:00:06]} Nf6 {[%emt 0:00:02]} 4. Bc4 {[%emt 0:
00:03]} h6 {[%emt 0:00:01]} 5. O-O {[%emt 0:00:02]} Bc5 {[%emt 0:00:00]} 6. d3
{[%emt 0:00:06]} O-O {[%emt 0:00:02]} 7. Re1 {[%emt 0:00:02]} d6 {[%emt 0:00:
02]} 8. h3 {[%emt 0:00:00]} Ne8 {[%emt 0:00:02]} 9. Be3 {[%emt 0:00:01]} Bxe3 {
[%emt 0:00:02]} 10. Rxe3 {[%emt 0:00:02]} Qf6 {[%emt 0:00:01]} 11. b3 {[%emt 0:
00:12]} Nd4 {[%emt 0:00:05]} 12. Ne2 {[%emt 0:00:25]} Nxe2+ {[%emt 0:00:05]}
13. Qxe2 {[%emt 0:00:02]} Qg6 {[%emt 0:00:01]} 14. Rc1 {[%emt 0:00:14]} Bxh3 {
[%emt 0:00:02]} 15. Nh4 {[%emt 0:00:02]} Qg5 {[%emt 0:00:05]} 16. Rxh3 {
[%emt 0:00:03]} Qd8 {[%emt 0:00:17]} 17. Rg3 {[%emt 0:00:10]} Nf6 {[%emt 0:00:
04]} 18. Re3 {[%emt 0:00:11]} Qd7 {[%emt 0:00:04]} 19. Nf5 {[%emt 0:00:10]} b5
{[%emt 0:00:10]} 20. Bd5 {[%emt 0:00:04]} c6 {[%emt 0:00:03]} 21. Bxf7+ {
[%emt 0:00:19]} Rxf7 {[%emt 0:00:04]} 22. Rg3 {[%emt 0:00:11]} Ng4 {[%emt 0:00:
13]} 23. Nxh6+ {[%emt 0:00:16]} gxh6 {[%emt 0:00:04]} 24. Rxg4+ {[%emt 0:00:05]
} Kf8 {[%emt 0:00:03]} 25. Rg3 {[%emt 0:00:08]} Rg7 {[%emt 0:00:06]} 26. Rxg7 {
[%emt 0:00:03]} Qxg7 {[%emt 0:00:02]} 27. Qf3+ {[%emt 0:00:01]} Ke7 {[%emt 0:
00:03]} 28. Qg3 {[%emt 0:00:02]} Qf7 {[%emt 0:00:04]} 29. Qf3 {[%emt 0:00:05]}
Qg6 {[%emt 0:00:03]} 30. c4 {[%emt 0:00:12]} bxc4 {[%emt 0:00:02]} 31. bxc4 {
[%emt 0:00:04]} Rf8 {[%emt 0:00:07]} 32. Qg3 {[%emt 0:00:05]} Qf6 {[%emt 0:00:
09]} 33. Rb1 {[%emt 0:00:07]} Qf7 {[%emt 0:00:14]} 34. Rb7+ {[%emt 0:00:18]}
Ke8 {[%emt 0:00:03]} 35. Rxf7 {[%emt 0:00:01]} Kxf7 {[%emt 0:00:01]} 36. Qf3+ {
[%emt 0:00:02]} Kg7 {[%emt 0:00:01]} 37. Qe3 {[%emt 0:00:04]} Rg8 {[%emt 0:00:
05]} 38. Qxa7+ {[%emt 0:00:03]} Kh8 {[%emt 0:00:02]} 39. Qc7 {[%emt 0:00:08]}
Ra8 {[%emt 0:00:05]} 40. Qxd6 {[%emt 0:00:09]} Rxa2 {[%emt 0:00:02]} 41. Qxe5+
{[%emt 0:00:01]} Kg8 {[%emt 0:00:05]} 42. Qf6 {[%emt 0:00:18]} Rd2 {[%emt 0:00:
04]} 43. Qxc6 {[%emt 0:00:07]} Rxd3 {[%emt 0:00:03]} 44. Qxh6 {[%emt 0:00:01]}
Rd4 {[%emt 0:00:03]} 45. Qe6+ {[%emt 0:00:04]} Kh7 {[%emt 0:00:09]} 46. Qd5 {
[%emt 0:00:05]} Rxd5 {[%emt 0:00:04]} 47. exd5 {[%emt 0:00:04]} Kg6 {[%emt 0:
00:01]} 48. g4 {[%emt 0:00:02]} Kf6 {[%emt 0:00:02]} 49. f3 {[%emt 0:00:01]}
Ke5 {[%emt 0:00:02]} 50. g5 {[%emt 0:00:01]} Kf5 {[%emt 0:00:01]} 51. d6 {
[%emt 0:00:02]} Ke6 {[%emt 0:00:01]} 52. g6 {[%emt 0:00:01]} Kxd6 {[%emt 0:00:
00]} 53. g7 {[%emt 0:00:02]} Kc5 {[%emt 0:00:01]} 54. g8=Q {[%emt 0:00:02]} Kd4
{[%emt 0:00:01]} 55. Qd5+ {[%emt 0:00:04]} Ke3 {[%emt 0:00:01]} 56. Qe4+ {
[%emt 0:00:06]} Kd2 {[%emt 0:00:02]} 57. f4 {[%emt 0:00:03]} Kd1 {[%emt 0:00:
01]} 58. Qg2 {[%emt 0:00:02]} Ke1 {[%emt 0:00:03]} 59. Qf2+ {[%emt 0:00:02]}
Kd1 {[%emt 0:00:02]} 60. Kh2 {[%emt 0:00:02]} Kc1 {[%emt 0:00:02]} 61. Qe2 {
[%emt 0:00:01]} Kb1 {[%emt 0:00:01]} 62. Qd2 {[%emt 0:00:00]} Ka1 {[%emt 0:00:
01]} 63. Kg3 {[%emt 0:00:02]} Kb1 {[%emt 0:00:01]} 64. Kf3 {[%emt 0:00:00]} Ka1
{[%emt 0:00:01]} 65. Ke3 {[%emt 0:00:00]} Kb1 {[%emt 0:00:01]} 66. Kd3 {
[%emt 0:00:00]} Ka1 {[%emt 0:00:02]} 67. Kc3 {[%emt 0:00:00]} Kb1 {[%emt 0:00:
02]} 68. Qb2# {[%emt 0:00:00] OnlyHungryKiwi won by checkmate} 1-0